[Event "Prague Festival-Futures 2022"]
[Site "Prague"]
[Date "2022.06.10"]
[Round "3.3"]
[White "Bouska, Jiri"]
[Black "Tolmacevs, Artjoms"]
[Result "1-0"]
[ECO "B92"]
[WhiteElo "2117"]
[BlackElo "2087"]
[Annotator "TA"]
[PlyCount "125"]
[EventDate "2022.06.07"]
[EventType "tourn"]
[EventCountry "CZE"]
[SourceTitle "playchess.com"]
[Source "ChessBase"]
[SourceQuality "1"]
[TimeControl "40/5400+30:1800+30"]

{[%evp 19,125,50,65,58,96,56,85,89,79,12,11,18,15,-13,-15,-25,-22,-16,0,0,0,0,0,0,25,0,0,0,0,0,0,0,65,59,55,38,43,0,0,0,0,0,0,0,0,0,143,133,141,127,164,180,155,87,141,125,746,-12840,-12838,-12840,-12840,-12846,-12847,-29992,29980,29981,12845,12836,1840,1131,12840,12838,12839,12840,12840,12841,12841,12841,12841,12842,12843,12843,12845,12845,12845,12845,12845,12845,12847,12846,12847,12847,12847,12846,12847,12847,12848,12847,12848,12847,12848,12847,12848,12847,12847,12847,12849,12849]} 1. e4 {[%emt 0:00:04]} c5 {[%emt 0:00:03]} 2. Nf3 {[%emt 0:00:08]} d6 {[%emt 0:00:04]} 3. d4 {[%emt 0:00:05]} cxd4 {[%emt 0:00:03]} 4. Nxd4 {[%emt 0:00:05]} Nf6 {[%emt 0:00:04]} 5. Nc3 {[%emt 0:00:05]} a6 {[%emt 0:00:03]} 6. Be2 {[%emt 0:00:05]} e5 {[%emt 0:01:09]} 7. Nb3 {[%emt 0:00:07]} Be7 {[%emt 0:00:12]} 8. Be3 {[%emt 0:00:07]} O-O {[%emt 0:01:55]} 9. g4 {[%emt 0:00:05][%cal Bg2g4,Bg4g5][%mdl 32]} Be6 {[%emt 0:06:35]} 10. g5 {[%emt 0:00:16]} Nfd7 {[%emt 0:00:59]} 11. h4 {[%emt 0:00:41] B92: Sicilian Najdorf: 6 Be2.} b5 {[%emt 0:09:54]} 12. Nd5 {[%emt 0:05:08] [#]} Nc5 $146 {[%emt 0:15:18]} ({Predecessor:} 12... Bxd5 13. Qxd5 Nb6 14. Qb7 N8d7 15. Na5 Qc8 16. O-O-O Rb8 17. Qc6 Nc5 18. b3 Nbd7 {1-0 (45) Sedlak,N (2586)-Bida,M (2225) Arad 2013}) 13. Nxc5 {[%emt 0:01:55] White is better.} dxc5 {[%emt 0:00:02]} 14. Qd2 {[%emt 0:03:40] 0x0.00207e64f071dp-1022s more active pieces.} (14. a4 $16) 14... Nc6 $11 {[%emt 0:02:27]} 15. O-O-O {[%emt 0:00:24]} Nd4 {[%emt 0:00:29]} 16. c3 {[%emt 0:02:28]} Bxd5 {[%emt 0:02:16]} 17. exd5 {[%emt 0:02:06]} Qxd5 {[%emt 0:06:49]} 18. Kb1 {[%emt 0:00:30] [#]} Qc6 $1 {[%emt 0:01:16]} 19. cxd4 {[%emt 0:08:41]} cxd4 {[%emt 0:00:06]} 20. Bxd4 {[%emt 0:07:48]} exd4 {[%emt 0:00:11]} 21. Bd3 {[%emt 0:00:36]} f5 {[%emt 0:09:01]} 22. gxf6 {[%emt 0:02:54]} Qxf6 {[%emt 0:00:09]} ({Don't play} 22... Bxf6 23. Rc1 Qd5 24. Qc2 $15) 23. Qe2 {[%emt 0:01:13] And now Qe4 would win.} Rae8 {[%emt 0:09:07]} ({Don't take} 23... g6 24. h5 g5 25. Qe4 $16) 24. Qe4 {[%emt 0:03:42]} Qh6 {[%emt 0:01:36]} 25. Rde1 {[%emt 0:02:50]} Bf6 {[%emt 0:02:26]} (25... Qh5 $11 26. Qb7 Bf6) 26. Qd5+ $1 $14 {[%emt 0:00:37]} Kh8 {[%emt 0:00:19]} 27. Rxe8 {[%emt 0:01:12]} Rxe8 {[%emt 0:00:11]} 28. Qd7 {[%emt 0:04:09][%cal Rd7e8]} Qh5 {[%emt 0:02:10]} 29. Rc1 {[%emt 0:01:50]} Rd8 {[%emt 0:00:59]} 30. Qc6 {[%emt 0:02:45]} a5 {[%emt 0:10:46]} (30... Qxh4 $2 31. Rh1 Qg4 32. Bxh7 $18) 31. Qc5 {[%emt 0:11:21]} Qf3 {[%emt 0:09:31]} 32. Qxb5 {[%emt 0:01:34]} Qxf2 {[%emt 0:00:10] [#]} (32... Bxh4 $11 {remains equal.} 33. Rf1 g6) 33. h5 $1 $16 {[%emt 0:01:25]} Qf3 {[%emt 0:02:40][%cal Of6g5]} 34. h6 {[%emt 0:00:59]} Qh3 {[%emt 0:04:57]} 35. hxg7+ {[%emt 0:01:09]} Bxg7 {[%emt 0:00:08]} 36. a3 $40 {[%emt 0:01:15][%mdl 128] White wants a kill.} (36. a4 $142) 36... a4 {[%emt 0:01:22]} (36... Rf8 $142) 37. Rc7 {[%emt 0:00:43]} Qg3 $2 {[%emt 0:00:27][%mdl 8192] [#]} (37... Qf3 $16 38. Ka1 Rf8) 38. Qh5 $4 {[%emt 0:00:41][%mdl 8192]} Qxd3+ $19 {[%emt 0:00:11]} 39. Ka1 {[%emt 0:00:27]} Qg6 {[%emt 0:00:42]} 40. Qh3 {[%emt 0:00:00]} d3 {[%emt 0:00:00] ( -> ...d2)} 41. Rc8 {[%emt 0:01:06]} d2 $4 {[%emt 0:01:00][%mdl 8192]} (41... Qf6 42. Rb8 Rxb8 43. Qh2 Re8 44. Qg2 Re1+ 45. Ka2 Qf7+ 46. Qd5 Qxd5+ 47. b3 axb3#) 42. Rxd8+ {[%emt 0:00:03] KQR-KQB. White stays focused until the end.} Bf8 {[%emt 0:00:15]} 43. Qc3+ {[%emt 0:00:14] White is clearly winning.} Kg8 {[%emt 0:00:13]} 44. Rxd2 {[%emt 0:00:28]} h5 {[%emt 0:00:31]} 45. Qf3 {[%emt 0:00:11]} Bg7 {[%emt 0:01:03]} 46. Qa8+ {[%emt 0:00:26]} Kh7 {[%emt 0:00:15]} 47. Qxa4 {[%emt 0:00:31]} Qg5 {[%emt 0:01:20]} 48. Qc2+ {[%emt 0:00:22]} Kh8 {[%emt 0:00:16]} 49. Re2 {[%emt 0:00:48]} Qb5 {[%emt 0:01:02]} 50. Qe4 {[%emt 0:00:33]} Qa5 {[%emt 0:00:46]} 51. Ka2 {[%emt 0:00:40]} Qc5 {[%emt 0:00:25]} 52. Rc2 {[%emt 0:00:25]} Qf8 {[%emt 0:00:24]} 53. Qe6 {[%emt 0:00:46]} Qf4 {[%emt 0:00:19]} 54. Qe8+ {[%emt 0:00:10]} Kh7 {[%emt 0:00:19]} 55. Qxh5+ {[%emt 0:00:06]} Bh6 {[%emt 0:00:24]} 56. Qc5 {[%emt 0:00:19]} Bg7 {[%emt 0:00:15]} 57. Qc4 {[%emt 0:00:16]} Qe5 {[%emt 0:00:13]} 58. Re2 {[%emt 0:00:18]} Qf6 {[%emt 0:00:14]} 59. Rh2+ {[%emt 0:00:17]} Kg6 {[%emt 0:00:06]} 60. a4 {[%emt 0:01:12]} Qe5 {[%emt 0:00:12]} 61. Qc6+ {[%emt 0:01:07]} Kf7 {[%emt 0:00:11]} 62. Rc2 {[%emt 0:00:56]} Qd4 {[%emt 0:00:12]} 63. Qc4+ {[%emt 0:00:08] Weighted Error Value: White=0.50/Black=0.57} 1-0

[Event "Prague Festival-Futures 2022"]
[Site "Prague"]
[Date "2022.06.10"]
[Round "3.4"]
[White "Sowinski, Pawel"]
[Black "Warchol, Kamil"]
[Result "1/2-1/2"]
[ECO "B51"]
[WhiteElo "2060"]
[BlackElo "2079"]
[Annotator "TA"]
[PlyCount "60"]
[EventDate "2022.06.07"]
[EventType "tourn"]
[EventCountry "CZE"]
[SourceTitle "playchess.com"]
[Source "ChessBase"]
[SourceQuality "1"]
[TimeControl "40/5400+30:1800+30"]

{[%evp 9,60,0,23,9,14,14,22,19,30,18,30,11,26,29,36,0,0,0,25,0,39,46,40,43,38,38,52,19,50,56,37,-11,35,52,41,27,33,29,71,25,35,0,58,0,28,0,44,1,50,40,38,0,0]} 1. e4 {[%emt 0:00:03]} c5 {[%emt 0:00:13]} 2. Nf3 {[%emt 0:00:05]} d6 {[%emt 0:00:11]} 3. Bb5+ {[%emt 0:00:04]} Nd7 {[%emt 0:00:05]} 4. a4 {[%emt 0:00:03]} Ngf6 {[%emt 0:01:51]} 5. Nc3 {[%emt 0:00:05]} e6 {[%emt 0:10:01]} 6. a5 {[%emt 0:02:55] B51: Sicilian: Moscow Variation (3 Bb5+) without 3...Bd7.} a6 {[%emt 0:02:44]} 7. Be2 {[%emt 0:00:10]} Qc7 {[%emt 0:05:22]} 8. O-O {[%emt 0:01:19]} Be7 {[%emt 0:05:48]} 9. d4 {[%emt 0:06:40]} cxd4 {[%emt 0:08:53]} 10. Nxd4 {[%emt 0:02:45]} b5 {[%emt 0:03:42]} 11. axb6 $1 {[%emt 0:00:41]} Nxb6 {[%emt 0:00:29]} 12. Be3 {[%emt 0:10:13][%cal Od4b5]} O-O {[%emt 0:02:18]} 13. Nb3 {[%emt 0:03:48] [#]} Nfd7 $146 {[%emt 0:13:25]} ({Predecessor:} 13... Bb7 14. Qd4 Nbd7 15. Na5 Rfd8 16. Nxb7 Qxb7 17. b3 Rdc8 18. Ra2 Qc6 19. Bd2 Nc5 {0-1 (39) Miron,L (2507)-Tissir,M (2379) Chess.com INT 2020}) 14. f4 {[%emt 0:15:42]} Nc5 {[%emt 0:04:44]} 15. Nxc5 {[%emt 0:00:18]} dxc5 {[%emt 0:00:11]} 16. Qe1 {[%emt 0:01:52]} Bb7 {[%emt 0:04:47]} 17. Qf2 {[%emt 0:04:01]} Nd7 {[%emt 0:07:24]} 18. b3 {[%emt 0:06:24]} Kh8 {[%emt 0:02:42]} 19. h3 {[%emt 0:08:32]} f5 {[%emt 0:06:44]} 20. Bd3 {[%emt 0:13:32] [#]} (20. exf5 $14 exf5 21. Rad1) 20... Bf6 {[%emt 0:04:07]} (20... Ne5 $1 $11) 21. e5 $14 {[%emt 0:00:45]} Be7 {[%emt 0:00:01]} 22. Bc4 {[%emt 0:03:14]} Qc6 {[%emt 0:00:47]} 23. Qf3 {[%emt 0:05:34]} Qb6 {[%emt 0:00:48]} 24. Qe2 {[%emt 0:02:26] White is more active.} (24. Qg3 $16) 24... Qc6 $11 {[%emt 0:01:22]} 25. Qf3 {[%emt 0:00:08]} Qb6 {[%emt 0:00:09]} 26. Qf2 {[%emt 0:01:58]} Qc6 {[%emt 0:00:45]} 27. Rad1 {[%emt 0:04:30]} Rg8 {[%emt 0:01:43]} 28. Qf3 {[%emt 0:01:43] [#] Threatens to win with Qxc6.} Qb6 {[%emt 0:01:39]} 29. Qg3 {[%emt 0:00:04]} Qc6 {[%emt 0:00:52]} 30. Qf3 {[%emt 0:02:44] Hoping for Qxc6.} Qb6 {[%emt 0:03:56] Weighted Error Value: White=0.18 (very precise) /Black=0.14 (very precise)} 1/2-1/2

[Event "Prague Festival-Futures 2022"]
[Site "Prague"]
[Date "2022.06.10"]
[Round "3.5"]
[White "Bokhnak, Timofey"]
[Black "Zelbova, Lada"]
[Result "1-0"]
[ECO "B22"]
[WhiteElo "2060"]
[BlackElo "1967"]
[Annotator "TA"]
[PlyCount "65"]
[EventDate "2022.06.07"]
[EventType "tourn"]
[EventCountry "CZE"]
[SourceTitle "playchess.com"]
[Source "ChessBase"]
[SourceQuality "1"]
[TimeControl "40/5400+30:1800+30"]

{[%evp 13,65,14,27,-5,22,0,49,47,66,98,102,78,128,70,225,216,172,174,263,221,210,246,241,209,391,292,260,253,290,193,262,268,307,119,102,112,207,62,69,62,62,60,173,170,172,175,142,132,404,394,818,816,801,789]} 1. e4 {[%emt 0:00:03][%cal Be2e4,Be4e5][%mdl 32]} c5 {[%emt 0:00:05]} 2. c3 {[%emt 0:00:19]} Nf6 {[%emt 0:00:06]} 3. e5 {[%emt 0:00:04]} Nd5 {[%emt 0:00:04]} 4. Bc4 {[%emt 0:00:04][%cal Bf1c4,Bc4b3,Bb3c2][%mdl 32]} Nb6 {[%emt 0:00:04]} 5. Bb3 {[%emt 0:00:03]} Nc6 {[%emt 0:00:10]} 6. Nf3 {[%emt 0:00:05]} d5 {[%emt 0:00:18]} 7. exd6 {[%emt 0:03:14]} Qxd6 {[%emt 0:00:07]} 8. Na3 {[%emt 0:06:36] B22: Sicilian: 2 c3.} Be6 {[%emt 0:07:31]} 9. O-O {[%emt 0:08:25]} c4 {[%emt 0:02:21]} (9... Bxb3 $11 {is superior.} 10. axb3 Qd3) 10. Bc2 $14 {[%emt 0:00:05] [#] White is slightly better.} O-O-O $146 {[%emt 0:12:16]} ({Predecessor:} 10... g6 11. b3 Bg7 12. Qe2 Ne5 13. Nd4 Bd5 14. Be4 a6 15. f4 Nd3 16. Bxd3 Bxd4+ 17. cxd4 cxd3 18. Qxd3 {0-1 (63) Stevanic,D (2337)-Petriashvili,N (2425) Tornelo INT 2020}) 11. b3 {[%emt 0:01:23]} Bd5 {[%emt 0:04:52]} 12. Re1 {[%emt 0:13:35]} Qf6 {[%emt 0:08:15]} (12... cxb3 $142 13. axb3 Qf6) 13. bxc4 {[%emt 0:14:31]} (13. Nxc4 $16 {Black must now prevent Nfe5.} Bxf3 14. Qxf3) 13... Nxc4 $2 {[%emt 0:03:40]} (13... Bxf3 $14 14. Qxf3 Qxf3 15. gxf3 e5) 14. Nxc4 $18 {[%emt 0:00:31]} Bxc4 {[%emt 0:00:05]} 15. d4 $1 {[%emt 0:00:15]} h6 {[%emt 0:12:57]} (15... Bd5 {keeps fighting.} 16. Rb1 Qd6) 16. Be4 {[%emt 0:01:30] Strongly threatening Rb1.} Bd5 {[%emt 0:04:45]} 17. Bxd5 {[%emt 0:07:19]} Rxd5 {[%emt 0:00:05]} 18. Qb3 {[%emt 0:00:34]} Rd7 {[%emt 0:03:57]} (18... e6 19. Rb1 Qe7) 19. Bb2 {[%emt 0:03:57]} ({Not} 19. Ne5 Nxe5 20. dxe5 (20. Rxe5 e6 $16) 20... Qe6 $16) 19... e6 {[%emt 0:01:27]} 20. c4 {[%emt 0:03:18]} Qf5 {[%emt 0:01:30]} 21. Red1 {[%emt 0:04:51]} Bd6 {[%emt 0:08:30]} (21... Na5 {is a better defense.} 22. Qa4 Nc6) 22. d5 {[%emt 0:08:10]} Ne5 {[%emt 0:03:26] [#]} 23. Bxe5 {[%emt 0:03:43]} (23. Nd4 $1 $18 {[%cal Rd4f5]} Qf4 24. g3) 23... Bxe5 $16 {[%emt 0:00:15]} 24. Rab1 {[%emt 0:00:02] Hoping for c5.} Bd6 {[%emt 0:04:59] [#]} 25. Qb5 {[%emt 0:03:24]} (25. Qa4 $1 $18 {[%cal Ra4a7]} a6 26. dxe6 Qxe6 27. Rb6) 25... Rc7 $14 {[%emt 0:01:38]} 26. c5 $36 {[%emt 0:01:11][%mdl 2048] White is more active.} Bxc5 {[%emt 0:05:10]} 27. d6 {[%emt 0:00:05]} Bxd6 {[%emt 0:00:44]} 28. Qxf5 $18 {[%emt 0:00:07]} Bxh2+ {[%emt 0:00:46]} 29. Kxh2 {[%emt 0:00:09] White wants to mate with Qe5.} exf5 {[%emt 0:00:05]} 30. Nd4 {[%emt 0:01:31] Threatens to win with Nb5. White is more active.} g6 $2 {[%emt 0:02:53][%mdl 8192]} (30... Rd8 $16 {was called for.} 31. Nxf5 f6) 31. Nb5 $1 {[%emt 0:00:11][%csl LRa7,LRc7]} Re7 {[%emt 0:05:11]} (31... Rd7 32. Nxa7+ Kd8 33. Rxd7+ Kxd7 34. Rxb7+ Kd6 35. Rxf7 Ra8) 32. Nxa7+ {[%emt 0:00:17]} Kc7 {[%emt 0:00:08]} 33. Rdc1+ {[%emt 0:00:38] Weighted Error Value: White=0.40/Black=0.52} 1-0

[Event "Prague Festival-Futures 2022"]
[Site "Prague"]
[Date "2022.06.11"]
[Round "4.1"]
[White "Peglau, Charis"]
[Black "Bokhnak, Timofey"]
[Result "1/2-1/2"]
[ECO "D40"]
[WhiteElo "2008"]
[BlackElo "2060"]
[Annotator "TA"]
[PlyCount "80"]
[EventDate "2022.06.07"]
[EventType "tourn"]
[EventCountry "CZE"]
[SourceTitle "playchess.com"]
[Source "ChessBase"]
[SourceQuality "1"]
[TimeControl "40/5400+30:1800+30"]

{[%evp 20,80,-23,-28,0,-20,-12,0,0,-29,-9,-18,-33,-41,-38,-36,-34,-45,-46,-56,-52,-51,-49,-58,-47,-58,0,-52,-51,-69,-62,-81,-65,-88,-2,-58,146,100,100,-75,-68,-70,-58,-56,-55,-76,-72,-97,-56,-87,-79,-116,-59,-108,-138,-125,-8,-58,0,0,0,0,7]} 1. Nf3 {[%emt 0:00:03]} d5 {[%emt 0:00:51]} 2. d4 {[%emt 0:00:07]} Nf6 {[%emt 0:00:16]} 3. Bf4 {[%emt 0:00:13]} e6 {[%emt 0:02:19]} 4. e3 {[%emt 0:00:37]} c5 {[%emt 0:02:32]} 5. c4 {[%emt 0:02:03]} Nc6 {[%emt 0:02:41]} 6. Nc3 {[%emt 0:01:31]} cxd4 {[%emt 0:03:56]} 7. exd4 {[%emt 0:04:09]} a6 {[%emt 0:01:27]} 8. Rc1 {[%emt 0:01:38]} Be7 {[%emt 0:08:30]} 9. Be2 {[%emt 0:03:37]} dxc4 {[%emt 0:03:19]} 10. O-O {[%emt 0:02:57]} O-O {[%emt 0:01:36]} 11. Bxc4 {[%emt 0:00:31]} Nb4 {[%emt 0:09:59] D40: Queen's Gambit Declined: Semi-Tarrasch with 5 e3.} (11... b5 $5 {[%cal Rb5c4]} 12. Bb3 Na5 $11) 12. Re1 {[%emt 0:06:03]} b5 {[%emt 0:00:28]} 13. Bb3 {[%emt 0:04:31]} Bb7 {[%emt 0:02:28] [#]} 14. Be5 $146 {[%emt 0:05:28]} ({Predecessor:} 14. Ne5 Rc8 15. a3 Nbd5 16. Nxd5 Bxd5 17. Rxc8 Qxc8 18. Bxd5 Nxd5 19. Qd2 Nxf4 20. Qxf4 {1-0 (44) Sihite,C (2252)-Tarini,G (2164) Chess.com INT 2020}) 14... Nbd5 {[%emt 0:10:28]} (14... Rc8 {is more complex.} 15. Ng5 Nfd5 16. Nge4 Nxc3 17. bxc3 Nc6) 15. Nxd5 {[%emt 0:04:31]} Bxd5 {[%emt 0:05:07]} 16. Bxd5 {[%emt 0:06:56]} Qxd5 {[%emt 0:00:33]} 17. a3 {[%emt 0:06:18]} Rac8 {[%emt 0:00:28]} 18. Qd3 {[%emt 0:02:24]} Nd7 {[%emt 0:01:16][%cal Bf6d7,Bd7b6,Bb6c4][%mdl 32]} 19. Qe2 {[%emt 0:09:21]} Nb6 {[%emt 0:08:15]} 20. Red1 {[%emt 0:04:30]} Nc4 {[%emt 0:01:22]} 21. h3 {[%emt 0:01:05]} Rc6 {[%emt 0:00:45]} 22. Bf4 {[%emt 0:05:48]} f6 {[%emt 0:08:03]} (22... Rd8 $15) 23. Re1 {[%emt 0:03:47]} (23. Ne1 $11) 23... Rfc8 $15 {[%emt 0:01:02]} 24. Rcd1 {[%emt 0:03:46]} Kf7 {[%emt 0:01:13]} 25. h4 {[%emt 0:07:18]} a5 {[%emt 0:03:05]} 26. Rd3 {[%emt 0:06:46]} g6 {[%emt 0:01:18]} ({Black should try} 26... a4 $17) 27. h5 {[%emt 0:01:14]} ({Better is} 27. g4 $11) 27... a4 $2 {[%emt 0:03:17]} (27... Qxh5 $2 28. d5 Ra6 29. d6 $18) (27... g5 $15 {keeps the upper hand.} 28. Bg3 b4) 28. hxg6+ $16 {[%emt 0:01:00]} hxg6 {[%emt 0:00:04] [#]} 29. Nh2 $2 {[%emt 0:00:56]} (29. Ne5+ $1 $16 {is forced if you want to stay better.} Nxe5 30. dxe5) 29... Rh8 $17 {[%emt 0:00:18]} 30. Ng4 {[%emt 0:03:07]} Rh4 {[%emt 0:03:10]} (30... Qh5 $2 31. Rh3 Nb6 32. Rxh5 $18) 31. Bg3 {[%emt 0:01:00]} Rh5 {[%emt 0:00:45]} 32. Rf3 {[%emt 0:01:12][%cal Og4f6]} Kg7 {[%emt 0:01:36]} 33. Rf4 {[%emt 0:00:36]} Rh8 {[%emt 0:03:18] aiming for ...Qh5.} 34. Ne3 {[%emt 0:00:43]} Nxe3 {[%emt 0:00:34]} 35. Qxe3 {[%emt 0:00:28]} Bd6 {[%emt 0:00:55]} ({But not} 35... Qh5 36. Rh4 Qf5 37. Rxh8 Kxh8 38. d5 $16) (35... Bd8 $17 36. Re4 (36. Rh4 $2 Rxh4 37. Bxh4 Bb6 $19) 36... Kf7) 36. Re4 {[%emt 0:00:31]} (36. Rg4 $1 $15) 36... Bxg3 {[%emt 0:00:26]} ({Don't play} 36... Qh5 37. Rh4 Qg5 38. Qxg5 (38. Qxe6 Rxh4 39. Qd7+ Kh6 $16) 38... fxg5 39. Rxh8 Kxh8 40. Rxe6 Rc1+ 41. Kh2 $16) 37. fxg3 {[%emt 0:00:24][%cal Re4e6]} Kf7 {[%emt 0:03:49]} (37... Rhc8 $17 {And now ...Rc2 would win.} 38. Rxe6 Rxe6 39. Qxe6 Qxe6 40. Rxe6 Rc2) 38. Re2 {[%emt 0:00:36] Inhibits Rc2.} (38. Qf2 $11) 38... Rd6 {[%emt 0:01:41]} ({Black should play} 38... Rhc8 $15 39. Qh6 Qh5) 39. Rc2 $11 {[%emt 0:00:40]} Rd7 {[%emt 0:02:41]} 40. Rc5 {[%emt 0:00:00]} Qa2 {[%emt 0:00:00] Weighted Error Value: White=0.26 (precise) /Black=0.35} 1/2-1/2

[Event "Prague Festival-Futures 2022"]
[Site "Prague"]
[Date "2022.06.11"]
[Round "4.2"]
[White "Tolmacevs, Artjoms"]
[Black "Warchol, Kamil"]
[Result "0-1"]
[ECO "C45"]
[WhiteElo "2087"]
[BlackElo "2079"]
[Annotator "TA"]
[PlyCount "56"]
[EventDate "2022.06.07"]
[EventType "tourn"]
[EventCountry "CZE"]
[SourceTitle "playchess.com"]
[Source "ChessBase"]
[SourceQuality "1"]
[TimeControl "40/5400+30:1800+30"]

{[%evp 11,56,0,5,10,0,6,5,11,14,8,6,10,6,0,0,0,0,0,21,21,18,0,0,0,-19,-50,-47,-416,-6,9,0,-158,-164,-387,-380,-883,-883,-881,-872,-850,-300,-843,-815,-1208,-1158,-29992,-29991]} 1. e4 {[%emt 0:00:30]} e5 {[%emt 0:00:30]} 2. Nf3 {[%emt 0:00:30][%cal Bg1f3,Bf3d4,Bd4b3][%mdl 32]} Nc6 {[%emt 0:00:30]} 3. d4 {[%emt 0:00:00]} exd4 {[%emt 0:00:00]} 4. Nxd4 {[%emt 0:00:00]} Bc5 {[%emt 0:00:00]} 5. Nb3 {[%emt 0:00:00]} Bb6 {[%emt 0:00:00]} 6. Nc3 {[%emt 0:00:00]} Nf6 {[%emt 0:00:16]} 7. Qe2 {[%emt 0:04:43] C45: Scotch Game.} a5 {[%emt 0:01:42]} 8. a4 {[%emt 0:01:24] next e5 is good for White.} O-O {[%emt 0:01:28]} 9. Be3 {[%emt 0:04:22] The position is equal.} Bxe3 {[%emt 0:01:51]} 10. Qxe3 {[%emt 0:00:23]} d5 {[%emt 0:00:21] [#] aiming for ...d4.} 11. O-O-O $1 {[%emt 0:04:11][%cal Rc3d5]} Nb4 $1 {[%emt 0:01:41]} 12. f3 {[%emt 0:23:55] [#]} Qe7 $146 {[%emt 0:20:19]} ({Predecessor:} 12... c6 13. g4 Re8 14. Qf2 Qe7 15. exd5 Nfxd5 16. Nxd5 Nxd5 17. Bc4 Qe3+ 18. Qxe3 Nxe3 19. Rhe1 Kf8 20. Rd4 Nxc4 21. Rxe8+ Kxe8 22. Rxc4 Be6 {½-½ (22) Vusatiuk,V (2307)-Roenko,A (2167) Vinnytsia 2022}) 13. e5 {[%emt 0:12:55]} Re8 {[%emt 0:14:03]} 14. f4 $1 {[%emt 0:00:33]} Bf5 {[%emt 0:18:24]} 15. Rd2 {[%emt 0:09:36]} c6 {[%emt 0:12:10]} 16. h3 {[%emt 0:21:35]} h6 {[%emt 0:10:56]} 17. g4 {[%emt 0:00:50]} Bh7 {[%emt 0:00:14]} 18. Bg2 {[%emt 0:00:49]} Nd7 $36 {[%emt 0:02:00][%cal Bf6d7,Bd7b6,Bb6c4,Bc4e3][%mdl 2080] Black is pushing.} 19. Qf2 $2 {[%emt 0:03:07][%mdl 8192]} ({White should try} 19. Re1 $15) 19... f6 $2 {[%emt 0:03:16]} ({Better is} 19... Bxc2 $1 $19 20. Nd4 Nd3+ 21. Rxd3 Bxd3) 20. exf6 $11 {[%emt 0:01:43]} Qxf6 {[%emt 0:02:52] Hoping for ...Bxc2.} 21. Qg3 $2 {[%emt 0:03:42]} ({White should play} 21. Kb1 $11) 21... Nb6 $17 {[%emt 0:01:33] Strongly threatening ...Nc4. Black is more active.} 22. f5 $2 {[%emt 0:03:51]} (22. g5 hxg5 23. fxg5) 22... Nc4 $19 {[%emt 0:00:49] ...Re3 is the strong threat.} 23. Rf2 $2 {[%emt 0:00:36]} (23. Kb1 Nxd2+ 24. Nxd2) 23... Re3 {[%emt 0:02:30]} 24. Rf3 {[%emt 0:00:09] [#]} Na2+ $1 {[%emt 0:00:34][%mdl 512]} 25. Nxa2 {[%emt 0:01:31]} Qxb2+ {[%emt 0:00:03]} 26. Kd1 {[%emt 0:00:01]} Rae8 {[%emt 0:00:21]} 27. Rxe3 {[%emt 0:00:25]} Nxe3+ {[%emt 0:00:09]} 28. Ke2 {[%emt 0:01:44]} Nxf5+ {[%emt 0:00:27] Weighted Error Value: White=1.06/Black=0.28 (precise)} 0-1